Cogmind - Beta 17 @@@ ROGUE MODE // 2026.07.15 @ 13:01:07 Player: Duduxx Result: Destroyed by G-50 Soldier with Heavy Laser Performance ------------- Evolutions (4) 2000 Regions Visited (9) 1800 Robots Destroyed (106) 530 Value Destroyed (5961) 5961 Prototype IDs (2) 40 Alien Tech Used (0) 0 Bonus (2948) 2948 TOTAL SCORE: 13279 Bonus ------- High Alert Combat Kills 715 Follower Combat Kills 333 Entered Garrisons 400 Used RIF Installer 1500 Cogmind --------- Core Integrity 0/850 Matter 189/300 Energy 98/100 System Corruption 4% Temperature Cool (15) Movement Flying (27) Location -6/Factory Parts ------- > --- POWER (2) -------- (None) > --- PROPULSION (4) --- VTOL Module VTOL Module Cesium-ion Thruster Biomechanical Wings > --- UTILITY (6) ------ Advanced Heat Sink Core Analyzer Improved Hacking Suite Relay Coupler [NC] (31) Relay Coupler [Sentry] (21) Relay Coupler [Heavy] (21) > --- WEAPON (3) ------- Power Sword > --- INVENTORY (5) ---- Carbon-fiber Leg Flexi-carbon Leg Relay Coupler [Behemoth] (15) Rocket Array Peak State ------------ > --- POWER ------------ Deuterium Engine Improved Deuterium Engine > --- PROPULSION ------- Improved Heavy Treads Improved Heavy Treads > --- UTILITY ---------- Large Storage Unit Relay Coupler [Grunt] Relay Coupler [Sentry] Relay Coupler [Heavy] > --- WEAPON ----------- PD Laser > --- INVENTORY -------- Deuterium Engine Light Deuterium Engine Micro Fission Core Advanced Heat Sink Coolant Injector Stasis Canceller Relay Coupler [NC] Relay Coupler [Swarmer] Particle Gun Gatling Laser Advanced Assault Cannon Concussive RPG Rocket Array Remote Datajack Great Axe [Rating: 75] Favorites ----------- Power Improved Deuterium Engine Engine Improved Deuterium Engine Power Core Light Fission Core Propulsion Armored Leg Treads Light Treads Leg Armored Leg Wheel Armored Huge Wheel Flight Unit Cesium-ion Thruster Utility Large Storage Unit Device Advanced Heat Sink Storage Large Storage Unit Processor Improved Melee Analysis Suite Hackware Relay Coupler [Grunt] Protection Improved Light Armor Plating Weapon Gatling Laser Energy Gun Gatling Laser Energy Cannon Heavy Particle Cannon Ballistic Gun Heavy Assault Rifle Ballistic Cannon Advanced Assault Cannon Launcher Rocket Array Special Weapon Remote Datajack Slashing Weapon Power Sword Build | -11 -10 -9 -9 -8 -7 -7 -6 -6 -6 ------- Run | Yrd Mat Mat Min Mat Fac Gar Fac Gar Fac Slots Evolved 8 | . . 2 . 2 2 . 2 . . Power 1 | . . . . 1 . . . . . Propulsion 2 | . . . . 1 1 . . . . Utility 4 | . . 1 . . 1 . 2 . . Weapon 1 | . . 1 . . . . . . . Parts Attached 137 | 7 3 2 . 18 6 35 11 34 21 Power 21 | 1 1 . . 3 1 5 2 4 4 Engine 15 | 1 1 . . 3 . 4 1 3 2 Core 6 | . . . . . 1 1 1 1 2 Reactor . | . . . . . . . . . . Propulsion 41 | 2 . . . 5 1 9 5 10 9 Treads 11 | 2 . . . 2 . 5 1 1 . Leg 22 | . . . . 3 1 3 4 9 2 Wheel 1 | . . . . . . 1 . . . Hover . | . . . . . . . . . . Flight 7 | . . . . . . . . . 7 Utility 41 | 2 1 1 . 5 3 10 3 11 5 Device 14 | 1 . . . 1 2 2 1 6 1 Storage 3 | 1 1 . . 1 . . . . . Processor 4 | . . 1 . 1 . 1 . . 1 Hackware 15 | . . . . . 1 6 2 3 3 Protection 5 | . . . . 2 . 1 . 2 . Artifact . | . . . . . . . . . . Weapon 34 | 2 1 1 . 5 1 11 1 9 3 Energy Gun 20 | 1 . . . 4 . 5 . 7 3 Energy Cannon 3 | . . . . . 1 1 1 . . Ballistic Gun 4 | 1 1 1 . . . 1 . . . Ballistic Cannon 2 | . . . . 1 . 1 . . . Launcher 1 | . . . . . . . . 1 . Special Weapon 1 | . . . . . . 1 . . . Impact Weapon . | . . . . . . . . . . Slashing Weapon 3 | . . . . . . 2 . 1 . Piercing Weapon . | . . . . . . . . . . Special Melee Weapon . | . . . . . . . . . . Unidentified Prototypes 2 | . . . . . . . . 1 1 Corrupted Parts 1 | . . . . . . 1 . . . System Corruption 1 | . . . . . . 1 . . . Parts Lost 70 | . . . . 11 1 20 3 17 18 Power 13 | . . . . 1 . 4 . 4 4 Propulsion 19 | . . . . 3 . 5 . 5 6 Utility 17 | . . . . 3 . 4 2 4 4 Weapon 21 | . . . . 4 1 7 1 4 4 Highest Loss Streak 5 | . . . . 5 1 4 2 5 5 To Critical Strikes 1 | . . . . . . 1 . . . Average Backups 11 | 2 6 8 10 10 9 12 13 13 8 Power 2 | . 1 2 2 2 2 2 3 1 . Propulsion 1 | 1 2 2 2 3 1 1 1 2 2 Utility 2 | . . 1 3 2 2 2 3 2 2 Weapon 3 | . 2 2 3 2 2 4 4 5 2 Tool/Special . | . . . . . . . . . . Unused Backups 15 | . 1 . . . 2 4 . 3 5 Power 4 | . 1 . . . 1 1 . 1 . Propulsion 2 | . . . . . 1 . . . 1 Utility 7 | . . . . . . 3 . 1 3 Weapon 1 | . . . . . . . . 1 . Tool/Special 1 | . . . . . . . . . 1 Average Slot Usage (%) 90 | . 99 88 100 92 84 86 85 97 84 Engine 10 | . 13 11 11 16 11 10 10 9 5 Core 2 | . . . . . 3 3 2 2 3 Treads 7 | . 28 22 22 21 . 10 4 . . Leg 14 | . . . . . 24 11 17 25 13 Flight 1 | . . . . . . . . . 11 Device 6 | . 14 11 11 9 10 4 3 6 7 Storage 6 | . 14 11 11 9 7 7 6 6 3 Processor 1 | . . 8 11 2 . 1 . . . Hackware 13 | . . . . . 3 12 24 20 23 Protection 2 | . . . . 6 . 1 . 4 1 Energy Gun 11 | . 14 11 11 9 22 9 10 13 6 Energy Cannon 1 | . . . . . . 3 . . . Ballistic Gun 2 | . 14 13 22 10 . 1 . . . Ballistic Cannon 1 | . . . . 5 . 2 . 1 . Peak Build Rating 75 | 9 12 16 16 24 37 75 75 72 69 Average Rating 45 | 5 11 14 16 19 25 43 66 63 52 On Entrance 31 | . 9 12 16 16 21 37 75 57 68 Avg Prop Armor Cover (%) 10 | . . . . . . 11 12 6 . Naked Turns . | . . . . . . . . . . Heaviest Build 65 | 14 33 36 36 54 50 53 55 65 62 Greatest Support 150 | 40 40 40 40 60 60 150 150 72 72 Greatest Overweight (x) 9 | . . . . 2 1 9 1 1 1 Average Overweight (x) . | . . . . . . . . . . Largest Inventory Capacity 15 | 8 15 15 15 15 15 15 15 15 15 Average Capacity 14 | 7 12 15 15 15 15 15 15 15 10 Most Carried 15 | 3 8 10 10 14 15 15 15 15 15 Average Carried 11 | 2 6 8 10 10 9 12 13 13 8 Final Capacity 15 | 8 15 15 15 15 15 15 15 15 5 Final Carried 15 | 3 8 10 10 8 15 15 15 14 4 Class Distribution -------------------- 18% | Scavenger-Tank 15% | Scavenger-Mutant 11% | Scavenger-Gunner 10% | Gunner 8% | Tank 7% | Bothacker-Gunner 7% | Mutant 5% | Skirmisher 4% | Bothacker-Mutant 4% | Bothacker-Tank 4% | Sprinter Dominant Class ---------------- Mutant | -10/Materials Mutant | -9/Materials Skirmisher | -9/Mines Tank | -8/Materials Scavenger-Gunner | -7/Factory Gunner | -7/Garrison Bothacker-Gunner | -6/Factory Scavenger-Mutant | -6/Garrison Sprinter | -6/Factory Resources | -11 -10 -9 -9 -8 -7 -7 -6 -6 -6 ----------- Run | Yrd Mat Mat Min Mat Fac Gar Fac Gar Fac Matter Collected 3146 | 275 100 59 . 551 50 849 267 776 219 Remotely . | . . . . . . . . . . Salvage Created 4850 | 113 214 178 . 882 160 1265 317 1290 431 Parts 238 | 6 16 14 . 44 10 56 13 54 25 Haulers Intercepted 1 | . . . . 1 . . . . . Recyclers Shooed 6 | . . . . 4 . . 2 . . Parts Field Recycled . | . . . . . . . . . . Retrieved Matter . | . . . . . . . . . . Parts Self-Destructed . | . . . . . . . . . . Prevented . | . . . . . . . . . . Parts Restored . | . . . . . . . . . . Kills | -11 -10 -9 -9 -8 -7 -7 -6 -6 -6 ------- Run | Yrd Mat Mat Min Mat Fac Gar Fac Gar Fac Combat Hostiles Destroyed 95 | . 4 3 1 22 3 20 6 27 9 Melee 4 | . . . . . . 1 . . 3 Guns 66 | . 4 3 1 12 1 12 5 22 6 Cannons 21 | . . . . 10 1 7 . 3 . AOE 1 | . . . . . 1 . . . . Classes Destroyed 15 | 2 3 2 1 4 1 1 . 1 . Builder 1 | . 1 . . . . . . . . Tunneler 1 | 1 . . . . . . . . . Hauler 1 | . . . . 1 . . . . . Recycler 2 | 1 . . . 1 . . . . . Operator 2 | . . 1 . . . . 1 . . Watcher 5 | . 2 1 . 1 . . . . 1 Swarmer 29 | . . . . 7 . 9 1 9 3 Cutter 2 | . . . . . . 2 . . . Grunt 35 | . 4 1 . 10 . 4 4 7 5 Duelist 3 | . . . . 1 . 1 . 1 . Sentry 16 | . . 2 . 2 1 . 1 9 1 Hunter 5 | . . . . 2 1 2 . . . Programmer 3 | . . . . . 1 2 . . . Behemoth 1 | . . . . . . . . 1 . Assembled 1 | . . . 1 . . . . . . Best Kill Streak 5 | 2 3 3 1 5 2 5 2 3 3 Combat Bots Only 5 | . 3 2 1 4 2 5 2 3 3 Max Kills in Single Turn 2 | 1 2 1 1 2 1 1 1 2 1 Gunslinging 1 | . 1 . . . . . . . . Exploded 1 | . . . . . 1 . . . . Melee 1 | . . . . . . 1 . . 1 Uniques/NPCs Destroyed . | . . . . . . . . . . Combat | -11 -10 -9 -9 -8 -7 -7 -6 -6 -6 -------- Run | Yrd Mat Mat Min Mat Fac Gar Fac Gar Fac Hostile Shots Fired 1144 | . 18 6 10 170 41 138 162 433 166 Missed 421 | . 1 5 5 41 15 39 68 175 72 Hits 723 | . 17 1 5 129 26 99 94 258 94 Melee 26 | . . . 1 2 . 23 . . . Projectile 697 | . 17 1 4 127 26 76 94 258 94 AOE 1 | . . . . . . 1 . . . Critical Strikes 26 | . . . . 6 . 14 2 3 1 Part Disruptions 2 | . . . . . . 2 . . . Damage Taken 10712 | . 189 18 77 2062 299 1880 1210 3180 1797 Core 1437 | . 22 . . 379 29 144 113 345 405 Absorbed by Shields 79 | . . . . . . 9 . . 70 Core Remaining (%) 79 | 100 91 . 100 31 . 75 . . . Volleys Fired 320 | 5 22 12 6 58 5 64 20 107 21 Largest 3 | 2 2 3 3 3 3 3 3 3 3 Hottest 248 | 70 73 96 96 124 179 220 230 243 248 Shots Fired 759 | 10 42 25 18 164 12 168 47 231 42 Gun 571 | 10 42 25 18 126 9 99 38 169 35 Cannon 144 | . . . . 38 3 64 1 33 5 Launcher . | . . . . . . . . . . Special 44 | . . . . . . 5 8 29 2 Kinetic 216 | 5 22 13 12 99 . 43 . 22 . Thermal 438 | 5 20 12 6 49 6 81 39 180 40 Explosive . | . . . . . . . . . . Electromagnetic 61 | . . . . 16 6 39 . . . Robot Hit Streak 15 | 8 5 5 2 14 4 9 8 15 14 Robot Miss Streak 9 | 1 3 2 5 4 5 6 9 5 2 Penetration Max . | . . . . . . . . . . Secondary Targets 6 | . 1 1 . . . . 1 2 1 Max Gunslinging Chain 1 | . 1 1 . . . . 1 1 1 Autonomous 16 | . . . . . . . 16 . . Shots Hit Robots 540 | 9 25 15 7 109 5 159 37 136 38 Core Hits 247 | 4 10 9 2 52 4 70 20 54 22 Critical Kills . | . . . . . . . . . . Critical Parts Destroyed . | . . . . . . . . . . Critical Strikes 15 | . 1 . . 4 . 6 2 1 1 Burn 6 | . 1 . . 2 . . 2 1 . Destroy 1 | . . . . 1 . . . . . Blast 1 | . . . . 1 . . . . . Corrupt 1 | . . . . . . 1 . . . Sever 6 | . . . . . . 5 . . 1 Melee Attacks 147 | . . . . . . 78 . 23 46 Impact . | . . . . . . . . . . Slashing 147 | . . . . . . 78 . 23 46 Piercing . | . . . . . . . . . . Sneak Attacks . | . . . . . . . . . . Combat Hostiles . | . . . . . . . . . . Follow-up Attacks . | . . . . . . . . . . Damage Inflicted 11207 | 92 366 207 102 2049 165 3689 944 2635 958 Guns 6509 | 92 366 202 102 1199 28 1009 901 2093 517 Cannons 2086 | . . . . 665 38 748 30 542 63 Explosions 260 | . . . . 161 99 . . . . Melee 2310 | . . . . . . 1932 . . 378 Ramming 42 | . . 5 . 24 . . 13 . . Kinetic 2207 | 42 189 117 89 1174 . 408 . 188 . Thermal 6049 | 50 177 85 13 663 117 986 931 2447 580 Explosive . | . . . . . . . . . . Electromagnetic 599 | . . . . 188 48 363 . . . Impact . | . . . . . . . . . . Slashing 2310 | . . . . . . 1932 . . 378 Piercing . | . . . . . . . . . . Highest Corruption 6 | . 2 . . . 1 6 2 2 4 Average Corruption 3 | . 1 . . . 1 4 2 2 3 Corruption Purged . | . . . . . . . . . . Corruption Blocked . | . . . . . . . . . . Effects 119 | . 1 . . . 1 64 . 31 22 Message Errors 20 | . . . . . . 14 . 5 1 Matter Fused 30 | . 1 . . . . 14 . 7 8 Heat Flow Errors 22 | . . . . . 1 16 . 3 2 Energy Discharges 10 | . . . . . . 2 . 5 3 Parts Rejected 2 | . . . . . . 1 . . 1 Parts Fused 2 | . . . . . . 2 . . . Data Loss (minor) 14 | . . . . . . 6 . 5 3 Data Loss (major) 7 | . . . . . . 4 . 1 2 Misfires 4 | . . . . . . 1 . 3 . Alerts 5 | . . . . . . 3 . . 2 Weapon Failures 3 | . . . . . . 1 . 2 . Overload Shots . | . . . . . . . . . . Overflow Damage 51 | . . . . 8 . 19 . . 24 Projectiles 21 | . . . . 6 . 15 . . . Explosions 2 | . . . . 2 . . . . . Melee 28 | . . . . . . 4 . . 24 Knockbacks 17 | . . . . 14 . 3 . . . Impact . | . . . . . . . . . . Kinetic 15 | . . . . 12 . 3 . . . Secondary 2 | . . . . 2 . . . . . Self-Inflicted Damage 100 | . . . . 100 . . . . . Shots 2 | . . . . 2 . . . . . Rammed 6 | . . 2 . 3 . . 1 . . Targets Rammed 6 | . . 2 . 3 . . 1 . . Kicked . | . . . . . . . . . . Crushed . | . . . . . . . . . . Highest Temperature 468 | 60 180 30 158 426 242 468 411 453 364 Average Temperature 125 | 28 57 10 84 116 183 142 134 138 127 Received Heat Transfer 3028 | . 102 . . 909 6 159 369 997 486 Effects 38 | . . . . 3 . 13 3 15 4 Shutdowns 12 | . . . . 1 . 7 1 3 . Energy Bleed 4 | . . . . 1 . 2 . 1 . Interference 15 | . . . . . . 2 . 9 4 Matter Decay 2 | . . . . . . . 1 1 . Short Circuit 1 | . . . . . . . 1 . . Damage (minor) 4 | . . . . 1 . 2 . 1 . Siege Activations . | . . . . . . . . . . Martial Activations . | . . . . . . . . . . Shielding Activations . | . . . . . . . . . . Robots Disrupted 1 | . . . . 1 . . . . . Combat Hostiles 1 | . . . . 1 . . . . . Robots Corrupted . | . . . . . . . . . . Combat Hostiles . | . . . . . . . . . . Parts Fried 1 | . . . . 1 . . . . . Impact Corruptions . | . . . . . . . . . . Robots Melted 3 | . . . . . . . 1 2 . Combat Hostiles 3 | . . . . . . . 1 2 . Parts Melted 22 | . 1 . . . . 6 3 11 1 Heat Transferred 11889 | 148 592 259 37 1704 87 1993 1518 4489 1062 Parts Sabotaged . | . . . . . . . . . . Parts Stolen . | . . . . . . . . . . Parts Stripped . | . . . . . . . . . . Power Chain Reactions 2 | . . . . 2 . . . . . Alert | -11 -10 -9 -9 -8 -7 -7 -6 -6 -6 ------- Run | Yrd Mat Mat Min Mat Fac Gar Fac Gar Fac Maximum Alert Level 4 | . . . . 1 . 4 2 4 4 Low Security (%) 26 | 100 100 100 100 84 100 6 . . . Level 1 7 | . . . . 15 . 10 . 9 . Level 2 32 | . . . . . . 38 100 26 47 Level 3 23 | . . . . . . 29 . 40 39 Level 4 11 | . . . . . . 14 . 23 13 Level 5 . | . . . . . . . . . . High Security . | . . . . . . . . . . Max Security . | . . . . . . . . . . Peak Influence 1450 | 5 80 67 22 257 119 1331 698 1450 1197 Initial 760 | . . 16 22 . 35 72 698 332 760 Average 562 | . 14 26 5 94 22 681 585 849 791 Influence Increases 5087 | 10 124 102 . 659 153 1499 169 1348 1023 Destroy 0b10 Robot/C 2060 | . 80 60 . 440 60 500 120 620 180 Destroy 0b10 Robot/NC 90 | 10 15 10 . 15 . 30 5 . 5 Destroy Leader 302 | . 24 32 . 94 30 20 30 40 32 Allied During Kill 28 | . . . . . . 9 . 19 . Successful Hack 20 | . 5 . . . . . 2 7 6 Disable Machine 60 | . . . . 15 45 . . . . Anti-Garrison Action 1650 | . . . . . . 900 . 600 150 Destroy Structure 157 | . . . . 20 18 25 12 62 20 Partial Spotted 135 | . . . . 15 . . . . 120 Lose Combat Pursuer 585 | . . . . 60 . 15 . . 510 Influence Decreases 3906 | 10 84 85 57 580 129 271 1025 373 1292 Entered New Map 1600 | . . 24 35 . 44 31 633 143 690 Time Decay 1356 | 10 84 61 22 320 75 . 362 . 422 Lost Part 700 | . . . . 110 10 200 30 170 180 Lost Ally 100 | . . . . . . 40 . 60 . Purge Threat 150 | . . . . 150 . . . . . Squads Dispatched 24 | . 2 2 . 5 2 . 4 . 9 Investigation 5 | . 1 . . 2 1 . . . 1 Extermination 3 | . . . . . 1 . 1 . 1 Reinforcement 9 | . 1 2 . 2 . . 2 . 2 Assault 5 | . . . . . . . . . 5 Garrison 2 | . . . . 1 . . 1 . . Intercept . | . . . . . . . . . . Searches Triggered . | . . . . . . . . . . Construction Impeded 1 | . . . . . . . 1 . . Haulers Reinforced . | . . . . . . . . . . Active Scanning Responses . | . . . . . . . . . . Cargo Convoy Interrupts . | . . . . . . . . . . Stealth | -11 -10 -9 -9 -8 -7 -7 -6 -6 -6 --------- Run | Yrd Mat Mat Min Mat Fac Gar Fac Gar Fac Distress Signals 8 | . 1 2 . 3 . . 1 . 1 Communications Jammed . | . . . . . . . . . . Distress Signals . | . . . . . . . . . . Times Spotted 196 | . 11 6 2 37 6 30 17 34 53 Peak Tracking Total 8 | . 4 4 1 5 4 7 4 5 8 Tactical Retreats 16 | . . . . 1 . 1 . . 14 Traps | -11 -10 -9 -9 -8 -7 -7 -6 -6 -6 ------- Run | Yrd Mat Mat Min Mat Fac Gar Fac Gar Fac Traps Triggered 17 | . 3 . . 1 . 5 1 1 6 Indirectly . | . . . . . . . . . . Trap Hack Attempts . | . . . . . . . . . . Triggered . | . . . . . . . . . . Disarmed . | . . . . . . . . . . Reprogrammed . | . . . . . . . . . . Reused . | . . . . . . . . . . Traps Extracted . | . . . . . . . . . . Installed . | . . . . . . . . . . Triggered . | . . . . . . . . . . Machines | -11 -10 -9 -9 -8 -7 -7 -6 -6 -6 ---------- Run | Yrd Mat Mat Min Mat Fac Gar Fac Gar Fac Machines Disabled 14 | . . . . 1 3 5 . 4 1 Max in Single Turn 3 | . . . . 1 3 1 . 1 1 Garrison Access 1 | . . . . . . . . . 1 Garrison Relay 9 | . . . . . . 5 . 4 . Machines Repaired . | . . . . . . . . . . Machines Dismantled . | . . . . . . . . . . Machines Sabotaged . | . . . . . . . . . . Overloaded Fab Kills . | . . . . . . . . . . Hacking | -11 -10 -9 -9 -8 -7 -7 -6 -6 -6 --------- Run | Yrd Mat Mat Min Mat Fac Gar Fac Gar Fac Machines Accessed 17 | . 1 . . 2 2 3 2 2 5 Terminals 13 | . 1 . . 2 1 3 . 2 4 Fabricators . | . . . . . . . . . . Repair Stations 1 | . . . . . . . 1 . . Recycling Units . | . . . . . . . . . . Scanalyzers . | . . . . . . . . . . Garrison Access 3 | . . . . . 1 . 1 . 1 Total Hacks 27 | . 2 . . 3 4 5 3 3 7 Successful 10 | . 1 . . 1 1 1 2 1 3 Failed 17 | . 1 . . 2 3 4 1 2 4 Catastrophic 5 | . . . . 1 . 1 . . 3 Database Lockouts . | . . . . . . . . . . Manual 7 | . 1 . . 2 . . . . 4 Terminals 22 | . 2 . . 3 3 5 . 3 6 Fabricators . | . . . . . . . . . . Repair Stations 2 | . . . . . . . 2 . . Recycling Units . | . . . . . . . . . . Scanalyzers . | . . . . . . . . . . Garrison Access 3 | . . . . . 1 . 1 . 1 Terminal Hacks 6 | . 1 . . 1 . 1 . 1 2 Open Door 1 | . . . . . . . . 1 . Unreport Threat 1 | . . . . 1 . . . . . Dispatch Records 1 | . . . . . . . . . 1 Reinforcement Status 1 | . . . . . . . . . 1 Zone Layout 1 | . 1 . . . . . . . . Security Stations 1 | . . . . . . 1 . . . Fabricator Hacks . | . . . . . . . . . . Repair Station Hacks 1 | . . . . . . . 1 . . Scan Component 1 | . . . . . . . 1 . . Recycling Unit Hacks . | . . . . . . . . . . Scanalyzer . | . . . . . . . . . . Garrison Access Hacks 3 | . . . . . 1 . 1 . 1 Unlock Access 2 | . . . . . 1 . 1 . . Coupler Status 1 | . . . . . . . . . 1 Unauthorized Hacks . | . . . . . . . . . . Terminals . | . . . . . . . . . . Fabricators . | . . . . . . . . . . Repair Stations . | . . . . . . . . . . Recycling Units . | . . . . . . . . . . Scanalyzers . | . . . . . . . . . . Garrison Access . | . . . . . . . . . . Data Cores Recovered . | . . . . . . . . . . Used . | . . . . . . . . . . Hacking Detections 14 | . 1 . . 2 2 2 1 1 5 Full Trace Events 4 | . . . . 1 1 1 . . 1 Feedback Events . | . . . . . . . . . . Feedback Blocked . | . . . . . . . . . . Robot Schematics Acquired . | . . . . . . . . . . Robots Built . | . . . . . . . . . . Authchips . | . . . . . . . . . . Time . | . . . . . . . . . . Total Robot Build Rating . | . . . . . . . . . . Part Schematics Acquired . | . . . . . . . . . . Parts Built . | . . . . . . . . . . Authchips . | . . . . . . . . . . Time . | . . . . . . . . . . Total Part Build Rating . | . . . . . . . . . . Part Studies Acquired . | . . . . . . . . . . Parts Repaired . | . . . . . . . . . . Time . | . . . . . . . . . . Parts Recycled . | . . . . . . . . . . Recycled Matter . | . . . . . . . . . . Retrieved Matter . | . . . . . . . . . . Retrieved Components . | . . . . . . . . . . Parts Scanalyzed . | . . . . . . . . . . Part Schematics Acquired . | . . . . . . . . . . Parts Damaged . | . . . . . . . . . . Bothacking | -11 -10 -9 -9 -8 -7 -7 -6 -6 -6 ------------ Run | Yrd Mat Mat Min Mat Fac Gar Fac Gar Fac Used RIF Installer 3 | . . . . . . 2 . 1 . Coupler Efficiency 1 | . . . . . . . . 1 . Patrol Navigation 1 | . . . . . . 1 . . . Robots Hacked 19 | . . . . . . 4 6 8 1 Non-combat 1 | . . . . . . . 1 . . Combat 18 | . . . . . . 4 5 8 1 Robot Hacks Applied 22 | . . . . . . 4 7 10 1 parse_system 3 | . . . . . . 1 1 . 1 find_garrison 1 | . . . . . . . 1 . . reboot_propulsion 1 | . . . . . . . 1 . . scatter_targeting 3 | . . . . . . . . 3 . disrupt_area 1 | . . . . . . . 1 . . spike_heat 4 | . . . . . . . . 4 . overload_power 2 | . . . . . . . 1 1 . wipe_record 2 | . . . . . . . 2 . . overwrite_iff 3 | . . . . . . 1 . 2 . streamctrl_high 2 | . . . . . . 2 . . . Relay Couplers Released 39 | . . . . . . 16 . 21 2 Machine Destruction 35 | . . . . . . 16 . 17 2 Programmers 4 | . . . . . . . . 4 . Attached 13 | . . . . . . 6 2 3 2 Fabnet Peak Effective % . | . . . . . . . . . . Robots Rewired 4 | . . . . . . . . 4 . Allies Hacked . | . . . . . . . . . . Hacks Repelled . | . . . . . . . . . . Allies | -11 -10 -9 -9 -8 -7 -7 -6 -6 -6 -------- Run | Yrd Mat Mat Min Mat Fac Gar Fac Gar Fac Total Allies 9 | . . . . . . 3 . 6 . Largest Group 4 | . . . . . . 1 . 4 . Highest-Rated Group 173 | . . . . . . 32 . 173 . Highest-Rated Ally 51 | . . . . . . 32 . 51 . Total Orders . | . . . . . . . . . . Ally Attacks 42 | . . . . . . 24 . 18 . Total Damage 925 | . . . . . . 393 . 532 . Kills 10 | . . . . . . 5 . 5 . Allies Corrupted . | . . . . . . . . . . Allies Melted . | . . . . . . . . . . Intel | -11 -10 -9 -9 -8 -7 -7 -6 -6 -6 ------- Run | Yrd Mat Mat Min Mat Fac Gar Fac Gar Fac Active Infowar (turns) 954 | 10 363 157 132 292 . . . . . Terrain 954 | 10 363 157 132 292 . . . . . Robot Analysis Total . | . . . . . . . . . . Derelict Logs Recovered . | . . . . . . . . . . Drone Launches . | . . . . . . . . . . Drone Recoveries . | . . . . . . . . . . Exploration | -11 -10 -9 -9 -8 -7 -7 -6 -6 -6 ------------- Run | Yrd Mat Mat Min Mat Fac Gar Fac Gar Fac Turns Passed 9119 | 88 363 157 132 1081 557 2621 827 2272 1021 Spaces Moved 6025 | 39 179 71 71 446 294 1441 546 1428 1510 Core 14 | 1 . . . . . 3 . . 10 Treads 1771 | 38 179 71 71 436 . 799 176 1 . Legs 2927 | . . . . 10 294 484 370 1427 342 Wheels 155 | . . . . . . 155 . . . Hover . | . . . . . . . . . . Flight 1158 | . . . . . . . . . 1158 Fastest Speed 26 | 50 160 160 160 123 122 115 120 120 26 Average Speed 119 | 157 160 160 160 188 177 141 133 124 49 Slowest Speed 500 | 160 160 160 160 320 193 500 190 240 190 Overloaded Moves . | . . . . . . . . . . Propulsion Burnouts . | . . . . . . . . . . Robots Hopped 8 | . . . . . . . . . 8 Potential Cave-ins 12 | . . . . . . . . . 12 Cave-ins Triggered . | . . . . . . . . . . Exploration Rate (%) 33 | 3 35 11 36 49 11 75 13 75 26 Regions Visited 9 Branch Regions 1 Pre-discovered Areas . | . . . . . . . . . . Known Exits Taken 2 | . . . . . 1 . 1 . . Unknown Exits Taken 5 | 1 1 1 1 1 . . . . . Scrap Searched . | . . . . . . . . . . Spaces Dug 36 | . . . . . . . . 7 29 Terrain Destroyed 86 | . . . . 14 21 . 12 7 32 Melee 36 | . . . . . . . . 7 29 Projectile 20 | . . . . 5 . . 12 . 3 AOE 30 | . . . . 9 21 . . . . Terrain Rammed . | . . . . . . . . . . Walls Destroyed . | . . . . . . . . . . Machines Disabled . | . . . . . . . . . . Actions | -11 -10 -9 -9 -8 -7 -7 -6 -6 -6 --------- Run | Yrd Mat Mat Min Mat Fac Gar Fac Gar Fac Total 7030 | 53 215 89 76 555 321 1734 616 1702 1669 Wait 146 | . 2 . . 13 . 19 19 44 49 Move 6003 | 38 178 70 70 445 294 1440 546 1427 1495 Hop 7 | . . . . . . . . . 7 Pick Up 72 | 3 5 3 . 9 12 16 7 15 2 Fast Attach 90 | 7 2 1 . 6 2 23 7 18 24 Attach 67 | . . 1 . 10 3 19 6 19 9 Detach 43 | . 2 . . 3 1 16 2 16 3 Swap 29 | . 1 . . 3 1 12 2 9 1 Drop 51 | . 3 . . 5 3 13 6 16 5 Fire 320 | 5 22 12 6 58 5 64 20 107 21 Melee 147 | . . . . . . 78 . 23 46 Ram . | . . . . . . . . . . Kick . | . . . . . . . . . . Crush 6 | . . 2 . 3 . . 1 . . Escape Stasis 46 | . . . . . . 34 . 5 7 Rewire 3 | . . . . . . . . 3 . Trap . | . . . . . . . . . . Miscellaneous . | . . . . . . . . . . Route ------- -11/Scrapyard -10/Materials (discovered 2 exits: [*Mat x2]) -9/Materials -9/Mines (discovered 2 exits: *Mat x2) -8/Materials -7/Factory -7/Garrison (discovered 3 exits: *Fac x3) -6/Factory -6/Garrison (discovered 3 exits: *Fac x3) -6/Factory History --------- Turn | Location | Event 26 | -11/Scrapyard | Discovered new exit (range 16) 89 | -11/Scrapyard | Entered Materials 240 | -10/Materials | Discovered new exit (range 18) 315 | -10/Materials | Build established: Mutant 394 | -10/Materials | Discovered new exit (range 4) 452 | -10/Materials | Entered another Materials area 452 | -9/Materials | Evolved 2 slots: Utility x1, Weapon x1 547 | -9/Materials | Discovered new exit (range 10) 609 | -9/Materials | Entered Mines 615 | -9/Mines | Assembled infested the area 620 | -9/Mines | Assisted by a Guerilla fighting off Assembled 661 | -9/Mines | Discovered new exit (range 5) 733 | -9/Mines | Discovered new exit (range 6) 741 | -9/Mines | Entered Materials 741 | -8/Materials | Evolved 2 slots: Power x1, Propulsion x1 866 | -8/Materials | Build established: Skirmisher 1585 | -8/Materials | Discovered new exit (range 11) 1782 | -8/Materials | Core integrity fell below 50% 1790 | -8/Materials | Garrison activated, responded to threat 1822 | -8/Materials | Entered Factory 1822 | -7/Factory | Evolved 2 slots: Propulsion x1, Utility x1 1850 | -7/Factory | Lost 5 parts (1p1n1u2w) 2094 | -7/Factory | Build established: Scavenger-Gunner 2310 | -7/Factory | Found Prototype Launcher 2379 | -7/Factory | Identified exit to Garrison 2379 | -7/Factory | Entered Garrison 2403 | -7/Garrison | Triggered checkpoint 2437 | -7/Garrison | Installed Relay Interface Framework 2445 | -7/Garrison | Garrison Relay disabled 2495 | -7/Garrison | Learned Factory security intel 2561 | -7/Garrison | Triggered checkpoint 2599 | -7/Garrison | Lost 3 parts (2p1w) 2613 | -7/Garrison | Triggered checkpoint 2857 | -7/Garrison | Build established: Tank 2961 | -7/Garrison | Lost 3 parts (1n1u1w) 3039 | -7/Garrison | Expanded RIF knowledge: Patrol Navigation 3060 | -7/Garrison | Garrison Relay disabled 3093 | -7/Garrison | Discovered new exit (range 12) 3208 | -7/Garrison | Lost 3 parts (1n1u1w) 3411 | -7/Garrison | Triggered checkpoint 3419 | -7/Garrison | Garrison Relay disabled 3507 | -7/Garrison | Discovered new exit (range 13) 3533 | -7/Garrison | Triggered checkpoint 3611 | -7/Garrison | Lost 3 parts (1u2w) 3621 | -7/Garrison | Triggered checkpoint 3677 | -7/Garrison | Lost 4 parts (2p2n) 3837 | -7/Garrison | Triggered checkpoint 3850 | -7/Garrison | Garrison Relay disabled 3957 | -7/Garrison | Build established: Gunner 4229 | -7/Garrison | Triggered checkpoint 4231 | -7/Garrison | Garrison Relay disabled 4280 | -7/Garrison | Discovered new exit (range 10) 4353 | -7/Garrison | Triggered checkpoint 5000 | -7/Garrison | Entered Factory 5000 | -6/Factory | Evolved 2 slots: Utility x2 5207 | -6/Factory | Build established: Bothacker-Tank 5604 | -6/Factory | Build established: Bothacker-Gunner 5750 | -6/Factory | Garrison activated, responded to threat 5827 | -6/Factory | Identified exit to Garrison 5827 | -6/Factory | Entered Garrison 5853 | -6/Garrison | Triggered checkpoint 5958 | -6/Garrison | Spotted B-75 Beast 5991 | -6/Garrison | Garrison Relay disabled 6090 | -6/Garrison | Lost 5 parts (1p2u2w) 6098 | -6/Garrison | Destroyed B-75 Beast 6185 | -6/Garrison | Triggered checkpoint 6185 | -6/Garrison | Triggered checkpoint 6190 | -6/Garrison | Triggered checkpoint 6315 | -6/Garrison | Discovered new exit (range 8) 6371 | -6/Garrison | Triggered checkpoint 6407 | -6/Garrison | Garrison Relay disabled 6465 | -6/Garrison | Identified Rocket Array 6627 | -6/Garrison | Triggered checkpoint 6675 | -6/Garrison | Expanded RIF knowledge: Coupler Efficiency 6747 | -6/Garrison | Garrison Relay disabled 6762 | -6/Garrison | Build established: Scavenger-Tank 6784 | -6/Garrison | Discovered new exit (range 10) 6879 | -6/Garrison | Triggered checkpoint 7035 | -6/Garrison | Core integrity fell below 50% 7057 | -6/Garrison | Lost 4 parts (1p1n1u1w) 7124 | -6/Garrison | P-70 Sage assimilated allied B3-E5J(l) 7348 | -6/Garrison | Build established: Scavenger-Mutant 7461 | -6/Garrison | Triggered checkpoint 7506 | -6/Garrison | Lost 3 allies 7556 | -6/Garrison | Garrison Relay disabled 7588 | -6/Garrison | Discovered new exit (range 14) 8099 | -6/Garrison | Entered Factory 8348 | -6/Factory | Lost 5 parts (2p1u2w) 8449 | -6/Factory | First assault squad dispatched 8628 | -6/Factory | Core integrity fell below 20% 8663 | -6/Factory | Lost 4 parts (2n1u1w) 8781 | -6/Factory | Spotted B-75 Beast 9012 | -6/Factory | Lost 4 parts (1p1n2u) 9120 | -6/Factory | Destroyed by G-50 Soldier with Heavy Laser Last Messages --------------- 08982_ S-27 Virus Autogun severed. 08985_ S-27 Virus destroyed. 08987_ Acquired 26 matter. 08988_ Acquired VTOL Module. 09004_ The unstable cave ceiling collapses. 09025_ ALERT: Security rotation in progress. 09034_ T-07 Excavator is excavating. 09043_ ALERT: Suspicious intruders detected, dispatching Cutter reinforcements to area. 09087_ The unstable cave ceiling collapses. 09095_ System corrupted: Matter fused (-10). 09101_ Connecting with Terminal... 09115_ C-45 Heavy ARC bursts open, deploying its payload. 09115_ G-67 Veteran unfolds itself. 09115_ G-50 Soldier unfolds itself. 09115_ B-48 Gladiator unfolds itself. 09115_ G-50 Soldier unfolds itself. 09115_ I-36 Angel unfolds itself. 09120_ Lgt. Angular Momentum Engine destroyed. Map ----- +----------------------------------------------------+ | #?# # # ######/############# | | !! """ !! ### / # # ## | | ! """ !! # / # """""" ## | | ! """ # # # """""" ## | | # # # """""" ##"""" | | # / /" """""" ##"""" | | #######+## ############%[ ##"""" | | ## ####+##### ?/" """""" ##"""" | | ## """ # # #????# """""" ##"""" | | / """ # """ # ###### """""" ##"""" | | # """ # "R" + # # = """""" ##"""" | | # # " " #### # # ## | | + # #??# # " ## | | ## * #""" #??# + ""##+#####/###### | | ?# "" #""" #??#### # ""## #???# #??##" | | ?# "" #""" #?????# # T"## #???#!#???## | | ?# "T " #?????# # ""## #???# #????# | | ?# "" ##########?????# # ""## #???#=#????###### | | ?# "" ! #??????????????# # ## #???# #?????????? | | ?# ##???????????###g####### #???# #?????????? | | ?#######"#???????????# Y #???# #???# #?????????? | | ?????## ##???????????# ##### ##### ########### | | ????## ##????????????+ | | ???## ##?????????????# #################### | | ??## ##??????????????# #????????##"######## | | ?## ##???????????????## @##?????????## """ ## | | ## ##?????????????????# #???????????# """ ## | | ####??????????????????# +??????????## """ + | | ##???????????????????# #??????????#" ##### | | ##???????????????????? #??????????##] "" | | #????????????????????######???????????# ## ! | | ??????????????????????????????????????######### | | ??????????????????????????????????????????????# | | ??????????????????????????????????????????????# | | ??????????????????????????????????????????????# | | ??????????????????????????????????????????????# | | ??????????????????????????????????????????????# | | ??????????????????????????????????????????????#### | | | | | | | | | | | | | | | | | | | | | | | | | +----------------------------------------------------+ Best States ------------- Heat Dissipation 70 Coolant Potential 65 Energy Generation 31 Energy Capacity 500 Matter Stores 300 Matter Capacity 300 Sight Range 16 Terrain Scan Range 16 Terrain Scan Density 110 Armor Coverage 225 Evasion (%) 64 Melee Accuracy 6 Core Analysis 6 Recoil Reduction 4 Offensive Hacking 12 Relay Coupler Types 4 Relay Coupler Value 117 Item Schematics ----------------- None Robot Schematics ------------------ None Fabricated ------------ Nothing Repaired ---------- Nothing Studied --------- None Alien Tech Used ----------------- None Achievements -------------- Versatile Challenges ------------ None Game ------ Seed RapidVoltaicNeutralizer Manual? 0 Play Time 01:28:27 Cumulative 141.5 hours Start 2026.07.14 @ 02:54:37 End 2026.07.15 @ 13:01:07 Sessions 5 Manual Loads 0 Difficulty Rogue Special Mode None Game No. 262 Rogue 262 Adventurer 0 Explorer 0 Win Type - Total 0 Types 0/0/0/0/0/0/0/0/0/0 Lore% 37 Gallery% 47 Achievement% 30 Wizard Run 0 Options --------- Layout 1 ASCII 0 Keyboard 1 Movement Arrows Keybinds 0 Fullscreen 2 Font 24/Smallcaps Map View 50x35 Zoom Use 0% Tactical HUD 1 Map Filters NONE Filters NONE Steam 1 RUN: cd10b496-9ba8-427a-9413-af86c138eeb3